bitfinex-derivatives/quotes_ETHF0:USTF0_20250214
["timestamp","ask_amount","ask_price","bid_price","bid_amount"]
[1739576006599,0.00550671,2726.9,2726.3,0.5361]
[1739576006801,0.73884671,2726.9,2726.7,0.73337]
[1739576007003,0.73884671,2726.9,2726.8,0.5444]
[1739576007405,0.73884671,2726.9,2726.8,1.0805]
[1739576007707,0.00550671,2726.9,2726.8,1.81385]
[1739576008003,0.73882671,2726.9,2726.8,1.0805]
[1739576008406,0.00550671,2726.9,2726.2,6.38257264]
[1739576008599,3.21330671,2726.9,2726.4,3.554]
[1739576008800,0.73341,2726.6,2726.4,3.554]
[1739576008995,0.73341,2726.6,2726.4,4.28744]
[1739576009608,0.73341,2726.6,2726.5,0.73343]
[1739576009807,0.7334,2726.6,2726.5,0.73343]
[1739576010007,0.73343,2726.5,2726.4,3.554]
[1739576010314,0.73343,2726.5,2726.4,4.28746]
[1739576010815,0.73343,2726.5,2726.4,3.554]
[1739576011312,0.73342,2726.6,2726.5,0.73342]
[1739576011913,0.73343,2726.5,2726.4,4.28744]
[1739576012116,0.73343,2726.6,2726.5,0.73342]
[1739576012302,3.21330671,2726.9,2726.4,3.554]
[1739576012508,0.73338,2726.7,2726.6,0.73338]
[1739576012915,0.7334,2726.6,2726.5,0.7334]
[1739576013107,3.21330671,2726.9,2726.6,0.73339]
[1739576013108,0.73339,2726.7,2726.6,0.73339]
[1739576013308,0.73337,2726.8,2726.7,0.73337]
[1739576014714,0.73337,2726.8,2726.7,1.10057]
[1739576014916,0.73337,2726.8,2726.7,0.3672]
[1739576015314,0.73343,2726.5,2726.4,4.65463]
[1739576015916,0.73343,2726.5,2726.4,2.20963]
[1739576016213,0.73343,2726.5,2726.4,0.3672]
[1739576016614,1.28613,2726.5,2726.4,0.3672]
[1739576018414,1.28613,2726.5,2726.4,1.10066]
[1739576018610,1.28613,2726.5,2726.4,0.3672]
[1739576019418,1.28613,2726.5,2726.4,1.10066]
[1739576020216,1.28613,2726.5,2726.4,0.3672]
[1739576023717,1.28613,2726.5,2726.4,1.10066]
[1739576024019,1.28613,2726.5,2726.4,0.3672]
[1739576025114,0.73343,2726.5,2726.4,0.3672]
[1739576025416,3.94123,2726.6,2726.5,0.73343]
[1739576026017,3.94123,2726.6,2726.5,1.29153]
[1739576026717,0.73339,2726.7,2726.6,0.7334]
[1739576026913,0.73339,2726.7,2726.6,1.2875]
[1739576027116,0.5455,2726.8,2726.7,0.73337]
[1739576027307,0.5455,2726.8,2726.6,0.5541]
[1739576027511,0.73337,2726.7,2726.6,1.28748]
[1739576027713,0.5455,2726.8,2726.6,0.5541]
[1739576027914,0.00550671,2726.9,2726.8,0.73335]
[1739576028218,0.73319,2727.4,2727.2,0.73323]
[1739576028419,0.73319,2727.4,2727.3,0.5494]
[1739576028619,1.30057,2727.5,2727.3,0.5494]
[1739576028916,0.5674,2727.5,2727.3,1.28261]
[1739576029116,1.30057,2727.5,2727.3,0.5494]
[1739576029314,0.5674,2727.5,2727.3,0.5494]
[1739576029519,1.30056,2727.5,2727.3,1.2826]
[1739576029721,1.30056,2727.5,2727.3,0.5494]
[1739576030314,0.5674,2727.5,2727.3,1.2826]
[1739576030515,0.00550671,2727.7,2727.4,3.17477264]
[1739576030716,0.00550671,2727.7,2727.5,2.444]
[1739576031014,0.00550671,2727.7,2727.5,3.17714]
[1739576031220,0.00550671,2727.7,2727.5,2.444]
[1739576031409,0.00550671,2727.7,2727.6,0.5838]
[1739576031917,0.73861671,2727.7,2727.6,0.5838]
[1739576034223,0.00550671,2727.7,2727.6,1.31693]
[1739576034721,0.00550671,2727.7,2727.6,1.68413]
[1739576034917,0.00550671,2727.7,2727.6,4.89193]
[1739576036116,3.2078,2728.2,2728.0,0.73301]
[1739576036314,3.94078,2728.2,2728.1,0.5514]
[1739576036521,0.73298,2728.2,2728.1,0.5514]
[1739576036920,0.73297,2728.2,2728.1,0.5514]
[1739576037116,0.5481,2728.3,2727.9,2.443]
[1739576037417,0.73303,2728.0,2727.9,2.443]
[1739576037813,0.73311,2727.7,2727.6,3.394]
[1739576038121,0.73311,2727.7,2727.6,2.8102]
[1739576038323,0.73311,2727.7,2727.6,3.54333]
[1739576038515,0.73311,2727.7,2727.6,2.8102]
[1739576038713,0.73311,2727.7,2727.6,0.3672]
[1739576039729,0.73316,2727.5,2727.4,0.904]
[1739576040229,0.73316,2727.5,2727.4,0.5368]
[1739576040527,1.29256,2727.5,2727.4,1.26999]
[1739576042522,0.5594,2727.5,2727.2,20.324]
[1739576042722,3.94101,2727.3,2727.2,20.324]
[1739576043029,3.94101,2727.3,2727.2,0.73324]
[1739576044330,3.2078,2727.3,2727.1,0.00550671]
[1739576044628,0.73324,2727.2,2727.1,0.00550671]
[1739576046718,0.73324,2727.2,2727.1,0.59340671]
[1739576046918,3.94104,2727.3,2727.2,0.73324]
[1739576047230,0.73324,2727.2,2727.1,0.59340671]
[1739576047622,0.73324,2727.2,2727.1,0.00550671]
[1739576052526,0.73324,2727.2,2727.1,0.73877671]
[1739576052723,0.73324,2727.2,2727.1,0.00550671]
[1739576052925,0.73324,2727.2,2727.1,0.73877671]
[1739576053428,3.94102,2727.3,2727.2,0.73324]
[1739576053637,0.73324,2727.2,2727.1,0.73875671]
[1739576053929,3.2078,2727.3,2727.2,0.73324]
[1739576054120,1.29258,2727.5,2727.4,0.73319]
[1739576054831,1.29256,2727.5,2727.4,0.3672]
[1739576055134,3.2078,2727.7,2727.4,0.3672]
[1739576055535,0.73316,2727.5,2727.4,1.10039]
[1739576055732,0.73316,2727.5,2727.4,0.3672]
[1739576056624,0.73324,2727.2,2727.1,0.00550671]
[1739576057327,1.27104,2727.2,2727.1,0.00550671]
[1739576061336,0.73324,2727.2,2727.1,0.73877671]
[1739576061527,3.2078,2727.3,2727.1,0.00550671]
[1739576061835,0.73321,2727.4,2727.1,0.00550671]
[1739576062032,5.04053,2727.8,2727.5,0.73314]
[1739576062033,0.73316,2727.6,2727.5,0.73314]
[1739576062829,5.04053,2727.8,2727.1,0.00550671]
[1739576063034,0.73319,2727.5,2727.4,0.73318]
[1739576063222,0.73319,2727.5,2727.2,2.442]
[1739576063428,0.73321,2727.3,2727.2,3.17523]
[1739576063624,0.73324,2727.2,2727.1,0.00550671]
[1739576063832,3.94104,2727.2,2727.1,0.00550671]
[1739576067640,3.94104,2727.2,2727.1,0.73877671]
[1739576068041,0.73324,2727.2,2727.1,0.73877671]
[1739576068238,0.73324,2727.2,2727.1,0.00550671]
[1739576079348,0.73324,2727.2,2727.1,0.73877671]
[1739576082249,0.5792,2727.3,2727.1,0.00550671]
[1739576082448,0.73318,2727.5,2727.4,0.73317]
[1739576082854,3.94094,2727.6,2727.5,0.73316]
[1739576083755,3.2078,2727.6,2727.5,0.73316]
[1739576083953,0.73309,2727.8,2727.4,2.442]
[1739576084155,0.73309,2727.8,2727.7,0.73311]
[1739576084347,3.94087,2727.9,2727.7,0.73311]
[1739576084547,3.2078,2727.9,2727.5,3.75887264]
[1739576084750,3.2078,2727.9,2727.8,0.73308]
[1739576086050,3.2078,2727.9,2727.5,3.75887264]
[1739576086257,0.73308,2727.8,2727.7,0.73309]
[1739576086455,3.94087,2727.9,2727.7,0.73309]
[1739576087359,0.73309,2727.8,2727.6,3.17411]
[1739576087654,3.2078,2727.9,2727.6,3.17413]
[1739576087853,0.7331,2727.8,2727.6,3.17413]
[1739576088055,3.2078,2727.9,2727.6,2.441]
[1739576088261,0.73311,2727.7,2727.6,2.441]
[1739576088445,0.73309,2727.8,2727.6,3.17411]
[1739576088762,3.7501,2727.9,2727.6,2.441]
[1739576089051,0.7331,2727.8,2727.6,3.17412]
[1739576089250,0.7331,2727.8,2727.6,2.441]
[1739576089452,0.7331,2727.8,2727.7,0.73311]
[1739576089655,3.7501,2727.9,2727.6,2.441]
[1739576089961,0.73311,2727.7,2727.6,3.17412]
[1739576090152,0.73311,2727.7,2727.6,2.441]
[1739576090351,0.7331,2727.8,2727.6,3.17411]
[1739576090554,3.7501,2727.9,2727.6,3.17411]
[1739576090751,0.7331,2727.8,2727.6,3.17411]
[1739576091357,3.7501,2727.9,2727.6,3.17411]
[1739576091557,0.73311,2727.7,2727.6,3.17411]
[1739576091960,3.7501,2727.9,2727.6,2.441]
[1739576092162,0.7331,2727.8,2727.7,0.7331]
[1739576092961,0.73311,2727.7,2727.6,2.441]
[1739576093164,1.83271,2727.8,2727.4,3.0222]
[1739576093358,1.32545,2727.6,2727.5,0.73315]
[1739576093864,0.73316,2727.5,2727.4,0.5812]
[1739576094057,0.73324,2727.2,2727.1,0.73875671]
[1739576094663,0.73324,2727.2,2727.1,1.10595671]
[1739576094865,0.73324,2727.2,2727.1,0.73875671]
[1739576095060,0.73324,2727.2,2727.1,1.10595671]
[1739576095265,0.73323,2727.3,2727.2,0.73323]
[1739576095560,0.73324,2727.2,2727.1,0.73876671]
[1739576095760,1.32554,2727.2,2727.1,0.73876671]
[1739576095957,1.32554,2727.2,2727.1,1.10596671]
[1739576096158,0.5923,2727.2,2727.1,0.73876671]
[1739576096564,3.2078,2727.6,2727.1,0.37270671]
[1739576096761,1.28488,2727.5,2727.4,0.73318]
[1739576097164,0.5517,2727.5,2727.4,0.73318]
[1739576097369,1.28486,2727.5,2727.4,0.73318]
[1739576098767,0.5517,2727.5,2727.1,3.58050671]
[1739576099263,0.73324,2727.2,2727.1,0.00550671]
[1739576100869,0.73324,2727.2,2727.1,0.73877671]
[1739576101259,0.5517,2727.5,2727.1,0.00550671]
[1739576101561,0.73323,2727.3,2727.2,0.73322]
[1739576101869,0.73323,2727.3,2727.2,0.73324]
[1739576102271,0.73324,2727.2,2727.1,0.73875671]
[1739576102766,0.5517,2727.5,2727.1,0.00550671]
[1739576102982,0.73323,2727.3,2727.2,0.73323]
[1739576104472,0.5517,2727.5,2727.1,0.00550671]
[1739576104870,0.73324,2727.2,2727.1,0.00550671]
[1739576106773,1.28814,2727.2,2727.1,0.00550671]
[1739576107774,0.73324,2727.2,2727.1,0.73877671]
[1739576108875,0.73324,2727.2,2727.1,0.00550671]
[1739576109464,0.73324,2727.2,2727.1,0.73877671]
[1739576109669,0.73324,2727.2,2727.1,0.00550671]
[1739576109873,0.73324,2727.2,2727.1,0.73877671]
[1739576110075,0.73324,2727.2,2727.1,0.00550671]
[1739576113682,3.2078,2727.3,2726.7,0.5694]
[1739576113882,0.7334,2726.6,2726.5,1.28152]
[1739576114084,0.7334,2726.6,2726.5,0.5481]
[1739576114882,0.7334,2726.6,2726.5,1.28153]
[1739576115273,0.5759,2726.7,2726.5,0.5481]
[1739576115587,0.73346,2726.4,2726.3,0.00550671]
[1739576115788,0.73356,2726.0,2725.9,0.5522]
[1739576116085,0.73356,2726.0,2725.9,1.28578]
[1739576116280,3.2078,2726.4,2726.0,0.73356]
[1739576116281,0.73355,2726.1,2726.0,0.73356]
[1739576116478,3.2078,2726.4,2725.9,0.5522]
[1739576116779,0.73356,2726.0,2725.9,0.55770671]
[1739576117180,0.73356,2726.0,2725.9,0.00550671]
[1739576117579,1.87106,2726.0,2725.9,0.00550671]
[1739576118682,0.73356,2726.0,2725.9,0.00550671]
[1739576119082,0.73356,2726.0,2725.9,1.16220671]
[1739576119286,3.2078,2726.1,2725.9,1.16220671]
[1739576119588,3.2078,2726.1,2726.0,0.5932]
[1739576119589,3.94134,2726.1,2726.0,0.5932]
[1739576120681,0.73356,2726.0,2725.9,0.00550671]
[1739576121383,3.94135,2726.1,2725.9,0.00550671]
[1739576121782,3.94136,2726.1,2725.9,0.73908671]
[1739576122384,0.73356,2726.0,2725.9,0.00550671]
[1739576123687,3.2078,2726.1,2725.9,0.73907671]
[1739576123886,3.94135,2726.1,2725.9,0.00550671]
[1739576124087,3.94135,2726.1,2725.9,0.73908671]
[1739576124478,0.73356,2726.0,2725.9,0.73908671]
[1739576124681,0.73356,2726.0,2725.9,0.00550671]
[1739576125588,0.73356,2726.0,2725.9,0.73909671]
[1739576126288,3.2078,2726.1,2725.9,0.73909671]
[1739576126479,3.94135,2726.1,2725.9,0.73907671]
[1739576127077,3.94135,2726.1,2725.9,0.00550671]
[1739576127282,3.2078,2726.1,2726.0,0.73356]
[1739576127482,3.2078,2726.4,2725.9,0.00550671]
[1739576127683,0.7335,2726.3,2725.9,0.00550671]
[1739576127884,0.73352,2726.2,2726.1,0.73352]
[1739576128286,3.2078,2726.4,2726.0,0.73354]
[1739576128486,0.73353,2726.2,2726.1,1.6531]
[1739576129484,0.73348,2726.3,2726.1,2.38661]
[1739576129685,3.2078,2726.7,2726.1,1.6531]
[1739576129890,0.73347,2726.4,2726.3,0.73348]
[1739576130584,0.00550671,2726.8,2726.3,14.21628264]
[1739576130789,3.2078,2727.8,2726.7,3.17477264]
[1739576130989,3.2078,2727.8,2727.3,3.17477264]
[1739576131285,1.0927,2728.4,2727.6,3.17477264]
[1739576131490,1.0927,2728.4,2728.3,0.73294]
[1739576131785,15.76567641,2728.9,2728.8,0.73281]
[1739576132387,15.76567641,2728.9,2728.8,1.10001]
[1739576132992,15.76567641,2728.9,2728.8,3.54101]
[1739576134087,0.00550671,2729.1,2728.8,2.8082]
[1739576134287,0.00550671,2729.1,2728.9,0.73276]
[1739576135387,0.00550671,2729.1,2728.8,2.441]
[1739576135591,0.00550671,2729.1,2729.0,0.73276]
[1739576147499,0.73278,2729.0,2728.9,0.73278]
[1739576148903,0.00550671,2729.1,2728.7,2.8062]
[1739576149105,0.00550671,2729.1,2729.0,0.73276]
[1739576149405,0.73823671,2729.1,2729.0,0.73276]
[1739576149804,0.00550671,2729.1,2729.0,0.73276]
[1739576150003,0.73823671,2729.1,2729.0,0.73276]
[1739576150197,0.00550671,2729.1,2729.0,0.73276]
[1739576154806,0.00550671,2729.1,2729.0,1.09996]
[1739576158898,0.73823671,2729.1,2729.0,1.09996]
[1739576159202,0.00550671,2729.1,2728.9,0.3672]
[1739576159401,0.00550671,2729.1,2728.9,2.8052]
[1739576159402,0.73276,2729.0,2728.9,2.8052]
[1739576159597,0.73276,2729.0,2728.9,3.53798]
[1739576160605,0.00550671,2729.1,2728.5,3.17477264]
[1739576160906,0.73285,2728.7,2728.6,3.17085]
[1739576161104,0.5422,2728.9,2728.6,3.17085]
[1739576161105,0.73283,2728.8,2728.7,0.73284]
[1739576161704,0.5422,2728.9,2728.8,0.73281]
[1739576162306,1.27498,2728.9,2728.8,0.73281]
[1739576163211,4.48278,2728.9,2728.8,0.73281]
[1739576163513,0.73283,2728.8,2728.7,0.73283]
[1739576163914,3.75,2728.9,2728.5,5.61277264]
[1739576164107,4.48281,2728.9,2728.8,0.73281]
[1739576164713,3.75,2728.9,2728.5,5.61277264]
[1739576164914,4.48279,2728.9,2728.8,0.73281]
[1739576166113,1.27499,2728.9,2728.8,0.73281]
[1739576166911,0.5422,2728.9,2728.5,7.44499264]
[1739576167113,1.29272,2728.8,2728.7,0.73281]
[1739576167916,0.5599,2728.8,2728.7,0.73281]
[1739576168113,0.00550671,2729.1,2728.5,7.44499264]
[1739576168315,0.00550671,2729.1,2729.0,0.73276]
[1739576168518,0.00550671,2729.1,2729.0,3.17076]
[1739576169111,0.00550671,2729.1,2729.0,3.72286]
[1739576170221,0.00550671,2729.1,2729.0,6.93066]
[1739576171920,0.00550671,2729.1,2729.0,7.11607924]
[1739576172111,3.2078,2729.8,2729.0,12.38331924]
[1739576172319,4.3054,2730.2,2729.4,8.21416264]
[1739576172518,4.3054,2730.2,2729.5,2.438]
[1739576172719,0.73255,2729.8,2729.5,2.438]
[1739576172909,0.5873,2730.1,2729.5,3.1706]
[1739576173221,3.2078,2729.9,2729.4,6.38257264]
[1739576173421,0.73261,2729.6,2729.5,2.44349652]
[1739576173616,3.94041,2729.6,2729.5,0.00549652]
[1739576175821,3.2078,2729.6,2729.5,0.00549652]
[1739576176125,3.2078,2730.1,2729.5,0.00549652]
[1739576176326,0.73253,2729.9,2729.8,0.73254]
[1739576176520,0.73253,2729.9,2729.6,2.437]
[1739576176719,0.73253,2729.9,2729.8,0.73254]
[1739576177115,0.73251,2730.0,2729.6,3.0108]
[1739576177322,1.0976,2730.2,2729.7,3.76697264]
[1739576177520,1.0976,2730.2,2730.1,0.73246]
[1739576177722,3.2078,2730.4,2730.2,0.73243]
[1739576177923,3.2078,2730.4,2730.3,0.73241]
[1739576178526,3.94019,2730.4,2730.2,0.73243]
[1739576178729,3.2078,2730.4,2730.0,5.61177264]
[1739576178930,3.9402,2730.4,2730.1,0.73244]
[1739576179233,0.73241,2730.3,2730.1,0.73244]
[1739576179422,3.2078,2730.4,2730.0,5.61177264]
[1739576179626,0.73245,2730.2,2730.0,6.34425264]
[1739576179828,3.2078,2730.4,2730.0,5.61177264]
[1739576180228,0.73245,2730.2,2730.0,6.34424264]
[1739576180829,3.2078,2730.4,2730.0,2.437]
[1739576181030,0.73246,2730.1,2730.0,2.437]
[1739576181230,5.03897,2730.1,2729.6,0.5738]
[1739576181433,0.73254,2729.8,2729.7,2.437]
[1739576181628,3.94034,2729.8,2729.7,2.437]
[1739576184532,0.73254,2729.8,2729.7,2.437]
[1739576185037,0.73254,2729.8,2729.5,0.00549652]
[1739576185038,3.2078,2729.8,2729.5,0.00549652]
[1739576185230,0.7326,2729.6,2729.5,0.00549652]
[1739576189041,0.73276,2729.0,2728.9,2.437]
[1739576189243,3.94056,2729.0,2728.9,2.437]
[1739576189441,3.2078,2729.0,2728.7,20.305]
[1739576189642,0.73281,2728.8,2728.7,20.305]
[1739576191046,3.21326255,2729.0,2728.7,20.305]
[1739576191241,3.21326255,2729.0,2728.9,3.90755264]
[1739576192046,0.00546255,2729.0,2728.9,3.90755264]
[1739576193339,3.2078,2729.7,2728.9,3.90755264]
[1739576193340,0.73263,2729.5,2728.9,9.17477264]
[1739576193539,3.2078,2729.7,2729.2,3.17477264]
[1739576193740,0.73267,2729.4,2729.3,0.5583]
[1739576194147,3.2078,2729.4,2728.9,3.17477264]
[1739576194452,0.73273,2729.1,2729.0,2.437]
[1739576194651,5.03946,2729.4,2728.9,3.17477264]
[1739576194852,0.73276,2729.0,2728.9,2.437]
[1739576196053,0.73281,2728.8,2728.7,20.305]
[1739576196748,3.94061,2728.8,2728.7,20.305]
[1739576198850,0.73281,2728.8,2728.7,21.03784]
[1739576199239,2.37511,2729.2,2729.1,0.73273]
[1739576199240,3.94053,2729.2,2729.1,0.73273]
[1739576199446,3.2078,2729.5,2728.9,5.61177264]
[1739576199650,0.73271,2729.2,2729.1,0.73271]
[1739576200552,3.2078,2729.5,2729.0,0.5626]
[1739576200748,0.73273,2729.1,2729.0,1.29534]
[1739576201144,0.5378,2729.4,2729.0,1.29534]
[1739576201351,0.73273,2729.1,2729.0,1.29534]
[1739576201848,0.73272,2729.2,2729.0,0.5626]
[1739576202048,0.73272,2729.2,2729.0,1.29534]
[1739576202253,0.73272,2729.2,2729.0,0.5626]
[1739576202453,0.73272,2729.2,2729.0,1.29534]
[1739576202748,0.5378,2729.4,2729.0,1.29534]
[1739576202749,0.73273,2729.1,2729.0,1.29534]
[1739576202952,0.73272,2729.2,2729.0,1.29534]
[1739576203156,0.7327,2729.3,2729.1,0.73272]
[1739576203556,0.73269,2729.3,2729.1,0.73271]
[1739576204055,0.73266,2729.4,2729.2,0.73269]
[1739576204556,3.2078,2729.5,2729.1,0.73272]
[1739576204557,0.7327,2729.3,2729.1,0.73272]
[1739576205359,0.7327,2729.2,2729.1,0.73272]
[1739576205552,3.2078,2729.5,2729.0,0.5626]
[1739576205858,0.73272,2729.2,2729.1,2.437]
[1739576206159,3.2078,2729.5,2729.1,2.437]
[1739576206359,3.2078,2729.5,2729.1,3.16972]
[1739576206557,0.7327,2729.3,2729.1,2.437]
[1739576206752,0.7327,2729.2,2729.1,2.437]
[1739576207154,0.7327,2729.2,2729.1,3.16973]
[1739576208059,0.73273,2729.1,2729.0,0.5626]
[1739576208257,5.03963,2729.1,2728.6,3.17477264]
[1739576208460,0.73283,2728.8,2728.7,2.437]
[1739576209057,0.73283,2728.8,2728.7,3.16984]
[1739576209259,0.73283,2728.8,2728.7,2.437]
[1739576210653,1.1325,2729.0,2728.6,3.17477264]
[1739576210854,0.73284,2728.7,2728.6,3.17477264]
[1739576213257,0.73284,2728.7,2728.6,3.90763264]
[1739576214061,0.73284,2728.7,2728.6,3.17477264]
[1739576214767,0.73286,2728.6,2728.5,0.73836652]
[1739576215967,0.73286,2728.7,2728.6,0.73284]
[1739576216266,3.2078,2728.8,2728.5,0.00549652]
[1739576216464,0.73286,2728.6,2728.5,0.73836652]
[1739576216868,0.73286,2728.6,2728.5,0.73838652]
[1739576217166,0.73286,2728.6,2728.5,0.00549652]
[1739576217367,0.73286,2728.6,2728.5,0.73838652]
[1739576217660,0.73286,2728.6,2728.5,0.00549652]
[1739576218766,0.73286,2728.6,2728.5,0.73838652]
[1739576219467,0.73286,2728.6,2728.5,0.00549652]
[1739576219669,0.73286,2728.6,2728.5,0.73838652]
[1739576220466,0.73286,2728.6,2728.5,0.00549652]
[1739576222366,0.73286,2728.6,2728.5,0.73838652]
[1739576222570,0.73286,2728.6,2728.5,0.00549652]
[1739576227172,0.73308,2727.8,2727.7,3.53729]
[1739576227480,0.73313,2727.7,2727.6,0.73312]
[1739576227667,0.73314,2727.7,2727.6,0.73312]
[1739576227872,3.2078,2727.8,2727.5,0.73314]
[1739576227873,0.73315,2727.6,2727.5,0.73314]
[1739576228577,0.73313,2727.7,2727.6,0.73311]
[1739576228773,0.73316,2727.5,2727.4,24.58713264]
[1739576229072,0.57649652,2727.8,2727.4,23.85397264]
[1739576229276,1.30957652,2727.8,2727.7,0.73311]
[1739576229472,0.57649652,2727.8,2727.4,23.85397264]
[1739576229673,0.73312,2727.7,2727.6,0.73311]
[1739576229982,1.30958652,2727.8,2727.7,0.73311]
[1739576230174,1.30959652,2727.8,2727.7,0.73311]
[1739576230376,0.57649652,2727.8,2727.4,27.06177264]
[1739576230774,0.73316,2727.5,2727.4,24.25297]
[1739576231078,0.73316,2727.6,2727.4,23.5198]
[1739576231379,0.57649652,2727.8,2727.4,24.25297]
[1739576231581,0.73316,2727.5,2727.4,20.312]
[1739576231877,3.94096,2727.5,2727.4,20.312]
[1739576233074,0.73314,2727.6,2727.4,20.312]
[1739576233378,0.73313,2727.6,2727.5,0.5476]
[1739576234577,0.73316,2727.5,2727.4,21.04517]
[1739576234772,0.73316,2727.5,2727.4,20.312]
[1739576234971,0.73316,2727.5,2727.4,21.04519]
[1739576235480,0.73316,2727.5,2727.4,21.04517]
[1739576236177,0.73316,2727.5,2727.4,20.312]
[1739576236676,3.78429652,2727.8,2727.4,20.312]
[1739576236876,0.73316,2727.6,2727.5,0.73315]
[1739576237077,0.73316,2727.5,2727.4,21.04517]
[1739576237675,0.73316,2727.5,2727.4,20.312]
[1739576238782,0.73316,2727.5,2727.4,21.04519]
[1739576239681,0.73316,2727.5,2727.4,20.312]
[1739576241376,0.73316,2727.5,2727.4,21.04519]
[1739576241577,0.5597,2727.6,2727.4,20.312]
[1739576241774,0.73316,2727.5,2727.4,21.04517]
[1739576243878,0.73316,2727.5,2727.4,20.312]
[1739576244087,0.73316,2727.5,2727.4,21.04519]
[1739576245484,0.73316,2727.5,2727.4,20.312]
[1739576245686,0.73316,2727.5,2727.4,21.04519]
[1739576246785,0.5597,2727.6,2727.4,20.312]
[1739576246981,3.78429652,2727.8,2727.4,23.48677264]
[1739576247188,0.73312,2727.7,2727.6,0.73311]
[1739576247697,0.73312,2727.7,2727.6,1.29351]
[1739576248189,3.94639652,2727.8,2727.7,0.73311]
[1739576248589,0.73311,2727.7,2727.6,0.5604]
[1739576249296,0.73311,2727.7,2727.6,1.29353]
[1739576250990,0.73311,2727.7,2727.6,0.5604]
[1739576251381,0.73313,2727.6,2727.5,2.9774]
[1739576251586,0.73313,2727.6,2727.5,3.71056]
[1739576252492,0.73316,2727.5,2727.4,23.48218]
[1739576252991,0.73316,2727.5,2727.4,21.04518]
[1739576253781,0.73316,2727.5,2727.4,20.312]
[1739576253981,1.0907,2727.6,2727.3,0.55239652]
[1739576254293,1.32089,2727.4,2727.3,0.55239652]
[1739576255079,10.2527,2727.4,2727.1,0.3672]
[1739576255287,0.73386,2724.9,2724.8,3.2078]
[1739576255587,0.73386,2724.9,2724.8,0.3672]
[1739576255785,3.2078,2725.4,2724.8,0.7344]
[1739576255990,3.2078,2725.4,2725.2,0.3672]
[1739576256291,0.00549652,2725.6,2725.3,0.3672]
[1739576256492,0.73916652,2725.6,2725.5,0.3672]
[1739576256687,0.7337,2725.5,2725.4,0.3672]
[1739576256989,0.00549652,2725.6,2725.1,0.55070424]
[1739576256990,0.73379,2725.2,2725.1,0.55070424]
[1739576257890,0.73379,2725.2,2725.1,0.3672]
[1739576258789,3.2078,2725.4,2725.1,0.3672]
[1739576258991,0.73378,2725.2,2725.1,0.3672]
[1739576259386,3.2078,2725.4,2725.1,0.3672]
[1739576260093,0.73378,2725.2,2725.1,0.3672]
[1739576262993,0.00549652,2725.6,2725.1,4.27576264]
[1739576263194,0.73372,2725.4,2725.1,3.17477264]
[1739576263395,0.73916652,2725.6,2725.5,0.3672]
[1739576266999,0.73381,2725.1,2725.0,0.00549652]
[1739576267194,0.73381,2725.1,2725.0,4.01472652]
[1739576267504,0.73381,2725.1,2725.0,3.28089652]
[1739576267684,0.73381,2725.1,2725.0,4.01471652]
[1739576268397,0.73381,2725.1,2725.0,3.28089652]
[1739576268697,3.2078,2725.3,2725.0,3.28089652]
[1739576268998,3.94155,2725.3,2725.2,0.3672]
[1739576269196,0.73375,2725.3,2725.2,0.3672]
[1739576269496,3.21329652,2725.6,2725.2,0.3672]
[1739576269699,3.2078,2727.0,2725.5,6.34954528]
[1739576269995,0.73343,2726.5,2726.4,3.17477264]
[1739576270195,0.73351,2726.3,2726.2,2.559]
[1739576272399,0.73351,2726.3,2726.2,2.92070348]
[1739576272793,0.73348,2726.4,2726.2,2.92070348]
[1739576272997,0.73348,2726.4,2726.2,3.65419348]
[1739576274602,0.73348,2726.4,2726.3,0.3672]
[1739576274794,0.73348,2726.4,2726.2,3.65419348]
[1739576275395,0.73346,2726.4,2726.2,3.65420348]
[1739576275702,0.73346,2726.4,2726.3,0.3672]
[1739576276003,0.73346,2726.4,2726.2,3.65420348]
[1739576276489,0.73346,2726.4,2726.3,0.73348]
[1739576276694,0.73346,2726.4,2726.2,2.92070348]
[1739576276889,0.73346,2726.4,2726.3,0.3672]
[1739576277197,0.73346,2726.4,2726.3,1.09518348]
[1739576278298,0.00549652,2726.5,2726.3,0.72890348]
[1739576278503,0.73346,2726.4,2726.3,0.72890348]
[1739576278705,0.73346,2726.4,2726.3,0.36170348]
[1739576278904,0.73346,2726.4,2726.3,0.72890348]
[1739576279103,3.665,2726.1,2724.3,0.29035482]
[1739576279312,3.2078,2724.4,2724.3,0.3672]
[1739576279499,0.73399,2724.4,2724.3,0.3672]
[1739576279701,0.73399,2724.4,2724.3,0.3668]
[1739576280198,3.2078,2724.5,2723.5,0.3672]
[1739576280402,3.90891264,2723.9,2723.5,0.3672]
[1739576280598,3.17477264,2723.9,2723.7,0.00550671]
[1739576280803,3.90890264,2723.9,2723.8,0.734]
[1739576281603,0.73413,2723.9,2723.8,0.734]
[1739576282003,7.19349304,2724.4,2723.9,0.73411]
[1739576282204,7.19349304,2724.4,2724.2,0.3672]
[1739576282400,0.73402,2724.3,2724.2,0.3672]
[1739576282814,0.73402,2724.3,2724.2,0.734]
[1739576287709,3.2078,2724.4,2724.2,0.734]
[1739576287917,0.734,2724.4,2724.3,0.734]
[1739576288907,0.00549652,2724.6,2724.3,0.734]
[1739576289208,0.00549652,2724.6,2724.5,0.734]
[1739576289414,0.73943652,2724.6,2724.5,0.734]
[1739576292220,0.73943652,2724.6,2724.5,0.3668]
[1739576297636,0.73943652,2724.6,2724.5,0.734]
[1739576299032,0.73943652,2724.6,2724.5,1.46797]
[1739576299431,0.73943652,2724.6,2724.5,0.734]
[1739576299740,0.73943652,2724.6,2724.5,1.46797]
[1739576299934,0.73943652,2724.6,2724.5,1.10117]
[1739576300236,0.73943652,2724.6,2724.5,0.734]
[1739576300433,0.73943652,2724.6,2724.5,1.46797]